bitfinex/quotes_ETHUSD_20250814
["timestamp","ask_amount","ask_price","bid_price","bid_amount"]
[1755173947933,2.1228,4714.2,4711.6,0.55]
[1755173948109,2.1228,4714.2,4712.3,2.12209891]
[1755173948310,2.1228,4714.2,4712.5,3.0]
[1755173948948,2.1228,4714.2,4712.8,0.1064]
[1755173949159,2.1228,4714.2,4712.8,6.5384]
[1755173949958,2.1228,4714.2,4712.8,7.19224]
[1755173950735,0.4483,4714.2,4712.8,7.23894]
[1755173950943,1.6745,4714.9,4712.8,7.23894]
[1755173950944,0.4483,4714.7,4712.8,7.19424]
[1755173951268,0.4483,4714.3,4712.8,7.19224]
[1755173951761,0.4483,4714.3,4712.8,7.19424]
[1755173951961,0.4483,4714.3,4712.8,7.19224]
[1755173952163,0.1084,4715.0,4712.8,3.76024]
[1755173952337,0.4483,4713.8,4712.8,6.5312]
[1755173952539,0.4483,4713.8,4712.8,3.1072]
[1755173952840,0.4483,4713.8,4712.8,6.5322]
[1755173955874,0.4483,4713.8,4712.8,6.5272]
[1755173956179,0.4483,4713.4,4712.8,3.1072]
[1755173956388,0.4483,4713.4,4712.8,6.83592]
[1755173956546,0.4483,4713.4,4712.8,3.41792]
[1755173956751,0.4503,4713.4,4712.8,6.5242]
[1755173957251,0.002,4713.4,4712.8,6.5242]
[1755173958182,0.002,4713.4,4712.8,8.64608083]
[1755173958388,0.002,4713.4,4712.8,3.1072]
[1755173958695,0.002,4713.4,4712.8,6.5202]
[1755173958937,0.002,4713.4,4712.8,8.64408083]
[1755173959116,0.002,4713.4,4712.8,8.69078083]
[1755173959319,0.002,4713.4,4712.8,9.19208083]
[1755173959633,0.002,4713.4,4712.8,9.24078083]
[1755173960322,0.002,4713.4,4713.3,0.55]
[1755173960494,0.002,4715.0,4714.1,2.12128877]
[1755173960694,0.002,4715.0,4714.3,3.0]
[1755173960910,0.002,4715.0,4714.5,3.0]
[1755173961121,0.002,4715.0,4714.9,0.1064]
[1755173961286,0.002,4715.0,4714.9,6.5174]
[1755173961492,0.19868462,4715.0,4714.9,6.5174]
[1755173961820,0.19868462,4715.0,4714.9,7.61274]
[1755173962024,0.002,4715.0,4714.9,7.16814]
[1755173962397,0.002,4715.0,4714.9,9.28907575]
[1755173962611,0.002,4715.0,4714.9,9.28987575]
[1755173963012,0.002,4715.0,4714.9,9.84187575]
[1755173963319,0.002,4715.0,4714.9,9.89257575]
[1755173963908,0.002,4715.5,4715.4,5.67071086]
[1755173964112,0.002,4717.0,4716.2,2.1203499]
[1755173964436,0.002,4717.0,4716.4,3.0]
[1755173964437,0.19630276,4716.9,4716.4,3.0]
[1755173964615,0.002,4717.0,4716.9,0.1064]
[1755173964817,0.19812032,4717.0,4716.9,3.5204]
[1755173965134,0.63362032,4717.0,4716.9,3.5204]
[1755173965634,2.3136838,4717.0,4716.9,0.1064]
[1755173965799,2.3136838,4717.0,4716.9,3.5194]
[1755173966256,0.6334838,4717.0,4716.9,3.5194]
[1755173966436,0.002,4717.0,4716.9,6.73152888]
[1755173966738,0.1056,4718.3,4716.9,6.73152888]
[1755173966739,0.1056,4718.3,4717.1,5.66994657]
[1755173966895,0.4355,4718.2,4717.1,9.08194657]
[1755173967100,0.4355,4718.2,4717.1,6.5176]
[1755173967520,0.4355,4717.8,4717.1,3.1056]
[1755173967805,2.1177,4717.2,4717.1,6.5176]
[1755173968027,2.1177,4717.2,4717.1,3.5176]
[1755173969539,2.2233,4717.2,4716.5,5.084]
[1755173969701,2.31149402,4717.1,4716.5,5.084]
[1755173969907,2.55340509,4717.0,4716.5,5.084]
[1755173970122,2.31150199,4716.9,4716.5,5.084]
[1755173970315,2.31150199,4716.8,4716.5,5.084]
[1755173970522,2.2221,4716.7,4716.5,5.084]
[1755173970773,2.31151744,4716.6,4716.5,5.084]
[1755173970924,2.57750012,4716.6,4716.5,8.495]
[1755173972040,2.38168268,4716.6,4716.5,8.495]
[1755173972349,2.1157,4716.6,4716.5,8.495]
[1755173973931,2.41826602,4716.6,4716.5,8.495]
[1755173974468,2.41830336,4716.6,4716.5,8.495]
[1755173974617,2.86190336,4716.6,4716.5,5.084]
[1755173974816,2.86190336,4716.6,4716.5,8.491]
[1755173975039,3.17228464,4716.6,4716.5,8.4918]
[1755173975260,3.17228464,4716.6,4712.7,0.10521135]
[1755173975261,0.55,4716.5,4712.7,0.10521135]
[1755173975427,3.17228464,4716.6,4714.0,5.083]
[1755173975428,0.55,4716.3,4714.0,5.083]
[1755173975629,1.90290774,4716.2,4714.2,3.0]
[1755173975871,0.99149413,4716.1,4714.3,3.429]
[1755173976157,0.55,4715.9,4714.4,3.0]
[1755173976452,0.55,4715.7,4714.4,3.0]
[1755173976655,0.52810245,4715.7,4714.4,3.0]
[1755173976857,2.1157,4715.6,4714.4,3.0]
[1755173977020,2.1157,4715.5,4714.4,3.0]
[1755173977460,0.4355,4715.4,4714.2,3.0]
[1755173977678,2.1157,4715.4,4714.4,3.0]
[1755173977977,2.32727,4715.4,4714.4,3.0]
[1755173978169,0.4355,4715.3,4714.4,3.0]
[1755173978363,2.1157,4715.3,4714.4,3.0]
[1755173978774,2.1157,4715.2,4714.4,3.0]
[1755173979079,2.1157,4715.1,4714.4,3.0]
[1755173979284,0.4355,4715.0,4714.4,3.0]
[1755173980647,0.4355,4715.0,4714.4,4.1509]
[1755173981047,0.4355,4715.0,4714.4,3.0]
[1755173982472,0.4355,4715.0,4714.4,3.0008]
[1755173985291,0.4355,4715.0,4714.6,0.1064]
[1755173985467,0.4355,4715.0,4714.7,3.411]
[1755173985671,2.1157,4714.9,4714.7,3.411]
[1755173985870,2.1157,4714.8,4714.7,3.411]
[1755173987270,1.7866,4715.3,4714.8,3.0]
[1755173987479,2.1157,4715.3,4714.8,3.0]
[1755173987667,2.1157,4715.3,4714.9,0.1064]
[1755173987868,2.1157,4715.2,4715.0,3.407]
[1755173988085,0.1064,4715.5,4715.0,3.407]
[1755173988397,2.1157,4715.1,4715.0,3.407]
[1755173990995,2.33791,4715.1,4715.0,3.407]
[1755173991493,2.44431,4715.1,4715.0,3.407]
[1755173992490,2.44431,4715.1,4715.0,3.4078]
[1755173992903,0.4355,4715.1,4715.0,3.4078]
[1755173993103,1.5738,4715.6,4715.0,3.4078]
[1755173993300,0.1064,4715.5,4715.0,3.4078]
[1755173994278,0.4655,4715.4,4715.0,3.4078]
[1755173994484,0.1064,4715.8,4715.2,0.1064]
[1755173996511,2.0393,4715.7,4715.2,0.1064]
[1755173996706,0.13290663,4715.8,4715.2,0.1064]
[1755173996707,2.0393,4715.6,4715.2,0.1064]
[1755173996951,2.06580832,4715.5,4715.2,0.1064]
[1755173997132,2.0393,4715.4,4715.2,0.1064]
[1755173997340,2.06580944,4715.3,4715.0,3.4078]
[1755173997552,0.13290944,4715.3,4715.0,3.4078]
[1755173997846,2.0393,4715.2,4715.0,3.4078]
[1755173998033,1.5738,4715.2,4715.0,3.4078]
[1755173998346,2.0393,4715.1,4715.0,3.4078]
[1755173999475,2.1457,4715.1,4715.0,3.4078]
[1755174000657,0.002,4715.9,4715.0,3.4078]
[1755174001248,0.002,4715.9,4715.1,3.0]
[1755174001971,0.4675,4715.9,4715.1,3.0]
[1755174002137,1.5738,4715.8,4715.1,3.0]
[1755174002328,0.4655,4715.7,4715.0,3.4078]
[1755174002528,0.55,4715.6,4715.0,3.4078]
[1755174002835,2.0393,4715.5,4715.0,3.4078]
[1755174003018,0.02650888,4715.4,4715.0,3.4078]
[1755174003224,2.0393,4715.3,4715.0,3.4078]
[1755174003425,2.06581001,4715.2,4715.0,3.4078]
[1755174003670,2.0393,4715.1,4715.0,3.4078]
[1755174006772,1.5738,4715.5,4715.0,3.4078]
[1755174006938,0.002,4715.9,4715.0,3.4078]
[1755174007863,0.002,4715.9,4715.1,3.0]
[1755174008442,0.002,4715.9,4715.1,3.0008]
[1755174009684,0.002,4715.9,4715.1,3.64158]
[1755174010587,0.002,4715.9,4715.3,0.1064]
[1755174014901,2.0393,4715.8,4715.3,0.1064]
[1755174015232,2.0393,4715.7,4715.3,0.1064]
[1755174015347,2.0393,4715.6,4715.3,0.1064]
[1755174015551,0.002,4715.9,4715.3,0.1064]
[1755174015767,0.21497,4715.8,4715.3,0.1064]
[1755174016069,0.4655,4715.7,4715.3,0.1064]
[1755174016266,2.0393,4715.7,4715.3,0.1064]
[1755174016589,0.4655,4715.6,4715.3,0.1064]
[1755174016954,0.4655,4715.6,4715.3,5.1894]
[1755174017655,0.21497,4715.6,4715.3,5.1894]
[1755174017861,2.5893,4715.5,4715.4,3.375]
[1755174018086,2.5885,4715.5,4715.4,3.375]
[1755174018281,2.6949,4715.5,4715.4,3.375]
[1755174018586,2.6949,4715.5,4715.4,3.3758]
[1755174019290,2.96459,4715.5,4715.4,3.3758]
[1755174019494,2.41539,4715.5,4715.4,3.3758]
[1755174019654,0.1064,4715.5,4715.4,3.3758]
[1755174019986,0.002,4715.9,4715.4,3.3758]
[1755174020187,0.1064,4715.8,4715.4,3.3758]
[1755174021194,0.1064,4715.8,4715.5,3.0]
[1755174021699,0.002,4715.9,4715.5,3.0]
[1755174022220,1.956,4715.8,4715.4,3.3758]
[1755174022379,1.956,4715.7,4715.4,3.3758]
[1755174022585,1.956,4715.6,4715.4,3.3758]
[1755174022779,0.1064,4715.6,4715.4,3.3758]
[1755174023021,1.956,4715.5,4715.4,3.3758]
[1755174024938,0.20624,4715.4,4714.0,0.001]
[1755174025240,3.55,4714.9,4714.1,3.384]
[1755174025399,4.05712725,4714.8,4714.1,3.384]
[1755174025737,0.55,4714.6,4714.1,3.384]
[1755174026239,0.55,4714.4,4714.1,3.384]
[1755174026441,0.55,4714.2,4714.1,3.384]
[1755174026654,2.506,4714.2,4714.1,3.384]
[1755174026861,2.7566,4714.2,4714.1,3.384]
[1755174027819,0.4602,4714.7,4714.1,3.384]
[1755174028142,0.55,4714.6,4714.1,3.384]
[1755174028348,0.4602,4715.2,4714.1,3.384]
[1755174028574,0.4602,4715.7,4714.2,3.0]
[1755174028920,0.55,4715.5,4714.2,3.0]
[1755174029120,0.73995966,4715.4,4714.2,3.0]
[1755174029357,0.4602,4715.4,4714.2,3.0]
[1755174030532,1.4958,4715.6,4714.2,3.0]
[1755174030756,0.552,4715.9,4714.2,3.0]
[1755174031462,0.55,4715.7,4714.2,3.0]
[1755174031657,0.4602,4715.6,4714.2,3.0]
[1755174031843,0.4602,4715.6,4714.2,3.6385]
[1755174032463,1.4958,4715.5,4714.2,3.6393]
[1755174034133,0.4602,4715.4,4714.2,3.6393]
[1755174035118,0.1064,4715.2,4714.5,0.1064]
[1755174035319,0.1064,4715.2,4714.6,5.084]
[1755174035517,0.1064,4715.2,4714.7,3.37]
[1755174035821,1.956,4715.1,4714.7,3.37]
[1755174036021,1.4958,4715.1,4714.7,3.37]
[1755174036205,0.4602,4715.0,4714.7,3.37]
[1755174037829,0.1064,4714.8,4714.6,5.084]
[1755174038040,0.1064,4714.8,4714.7,3.367]
[1755174038336,0.6564,4714.8,4714.7,3.367]
[1755174038541,2.6124,4714.8,4714.7,3.367]
[1755174040419,2.6116,4714.8,4714.7,3.367]
[1755174040821,4.71272725,4714.8,4714.7,3.367]
[1755174043002,4.71272725,4714.8,4714.7,3.3678]
[1755174043205,3.21692725,4714.8,4714.7,3.3678]
[1755174043539,0.635783,4715.4,4714.7,3.3678]
[1755174043835,0.1064,4714.8,4714.7,3.3678]
[1755174044441,0.4602,4715.5,4714.7,3.3678]
[1755174044739,0.1064,4715.0,4714.7,3.3678]
[1755174047654,0.4602,4715.5,4714.7,3.3678]
[1755174047846,1.4958,4715.6,4714.7,3.3678]
[1755174047847,0.1064,4715.3,4714.7,3.3678]
[1755174048616,0.4602,4715.3,4714.7,3.3678]
[1755174048812,0.1064,4715.0,4714.7,3.3678]
[1755174049452,0.4602,4714.9,4714.7,3.3678]
[1755174049649,1.4958,4714.8,4714.7,3.3678]
[1755174049842,1.956,4714.8,4714.7,3.3678]
[1755174051424,28.10029501,4714.9,4714.7,0.0008]
[1755174051745,0.55,4714.7,4714.0,0.001]
[1755174051915,0.55,4714.5,4714.1,0.598]
[1755174052120,0.55,4714.3,4714.1,0.598]
[1755174052417,2.60451563,4714.2,4714.1,0.598]
[1755174053347,2.578,4714.2,4714.1,0.598]
[1755174053542,2.8358,4714.2,4714.1,0.598]
[1755174058459,0.55,4714.1,4714.0,0.001]
[1755174058640,2.4716,4714.1,4714.0,3.357]
[1755174059167,2.4716,4714.1,4714.0,3.356]
[1755174059351,2.4716,4714.1,4713.4,0.001]
[1755174059352,0.55,4713.5,4713.4,0.001]
[1755174059652,0.55,4713.5,4713.2,3.356]
[1755174059653,3.55,4713.4,4713.2,3.356]
[1755174059835,2.4716,4713.3,4713.2,3.356]
[1755174060548,0.55,4713.3,4713.2,3.356]
[1755174060880,0.1064,4713.3,4713.2,3.356]
[1755174061169,2.4716,4713.3,4713.2,3.359]
[1755174061486,0.24716,4713.3,4713.2,3.359]
[1755174061667,0.28623139,4714.1,4713.2,3.359]
[1755174061985,28.10029501,4714.9,4713.2,3.359]
[1755174061986,1.9216,4714.4,4713.2,3.359]
[1755174062279,1.0095,4714.3,4713.2,3.359]
[1755174062571,0.55,4714.1,4713.2,3.3598]
[1755174062756,0.02651675,4714.0,4713.2,3.3598]
[1755174062931,0.55,4713.9,4713.2,3.3598]
[1755174063141,0.635913,4714.4,4710.7,0.001]
[1755174063142,0.55,4712.5,4710.8,3.359]
[1755174063439,3.55,4712.0,4711.0,3.377]
[1755174063668,0.55,4712.1,4711.0,3.377]
[1755174063969,0.4595,4712.0,4711.0,3.377]
[1755174064196,0.55,4711.9,4711.0,3.377]
[1755174064346,0.55,4711.7,4711.0,3.377]
[1755174064673,0.4595,4711.6,4711.0,3.377]
[1755174065043,0.57653082,4711.5,4711.0,3.377]
[1755174065238,0.55,4711.3,4711.0,3.377]
[1755174065438,0.55,4711.1,4711.0,3.377]
[1755174065638,2.71876,4711.1,4711.0,3.377]
[1755174066173,2.71876,4711.1,4711.0,3.378]
[1755174066677,0.79716,4711.1,4711.0,3.378]
[1755174066877,0.4595,4711.6,4711.0,3.378]
[1755174067181,0.55,4711.5,4711.0,3.378]
[1755174067381,0.55,4711.7,4711.0,3.378]
[1755174069651,0.4595,4712.1,4711.0,3.378]
[1755174069850,0.55,4712.4,4711.0,3.378]
[1755174070045,0.55,4712.2,4711.0,3.378]
[1755174070471,0.55,4712.7,4711.0,3.3818]
[1755174070653,0.4595,4712.8,4711.1,3.0038]
[1755174070852,2.10112725,4713.8,4711.3,3.0]
[1755174070853,0.4595,4713.5,4711.3,3.0]
[1755174071052,0.1064,4712.4,4711.7,0.1064]
[1755174071957,0.1064,4712.4,4711.5,0.1064]
[1755174072928,0.55,4712.8,4711.2,5.087]
[1755174072929,2.49812632,4712.3,4711.2,5.087]
[1755174073060,0.55,4712.1,4711.6,3.37]
[1755174073267,0.6564,4711.7,4711.6,3.37]
[1755174073481,2.578,4711.7,4711.6,3.37]
[1755174078087,0.6564,4711.7,4711.6,3.37]
[1755174078921,0.1064,4711.7,4711.6,3.37]
[1755174079985,2.028,4711.7,4711.6,3.37]
[1755174080233,2.5884528,4711.7,4711.6,3.37]
[1755174080497,2.5884528,4711.7,4711.6,3.361]
[1755174080714,3.1384528,4711.7,4711.6,3.361]
[1755174081734,0.55,4711.6,4711.2,5.087]
[1755174081889,2.5077,4711.6,4711.3,3.36]
[1755174082091,0.55,4711.4,4711.3,3.36]
[1755174082314,2.5077,4711.4,4711.3,3.36]
[1755174082693,2.6141,4711.4,4711.3,3.36]
[1755174084548,0.1064,4711.4,4711.3,3.36]
[1755174088461,0.1064,4711.4,4711.3,3.361]
[1755174088676,0.75101,4711.4,4711.3,0.001]
[1755174088822,2.0641,4711.4,4711.3,3.354]
[1755174089750,0.1064,4711.4,4711.3,3.354]
[1755174091666,2.0641,4711.4,4711.3,3.354]
[1755174092026,2.0641,4711.4,4711.3,0.001]
[1755174092229,2.27051,4711.4,4711.3,3.351]
[1755174092450,2.27051,4711.4,4711.3,3.3518]
[1755174093317,6.01874404,4711.4,4711.3,3.3498]
[1755174093939,2.46874404,4711.4,4711.3,3.3498]
[1755174094867,3.01874404,4711.4,4711.3,3.3498]
[1755174095028,3.01874404,4711.4,4711.0,0.001]
[1755174095029,1.0641169,4711.3,4711.0,0.001]
[1755174095230,0.55,4711.0,4708.7,5.088]
[1755174095455,5.67278169,4710.8,4708.7,5.088]
[1755174095655,22.32873216,4710.8,4708.7,5.088]
[1755174095831,24.42985941,4710.8,4708.7,5.088]
[1755174096949,9.92985941,4710.8,4710.7,0.001]
[1755174097278,7.82873216,4710.8,4710.7,0.001]
[1755174097432,22.32873216,4710.8,4710.7,0.001]
[1755174098580,22.32844364,4710.8,4710.7,0.001]
[1755174098746,2.12297971,4710.4,4708.7,5.088]
[1755174098955,3.55,4710.2,4708.7,5.088]
[1755174099172,3.55,4710.0,4708.7,5.088]
[1755174099384,0.55,4709.8,4708.7,5.088]
[1755174099589,0.55,4709.6,4708.7,5.088]
[1755174099794,0.19796195,4709.5,4708.7,5.088]
[1755174099975,0.02654265,4709.4,4708.8,3.35]
[1755174100198,0.38419692,4709.4,4708.8,3.35]
[1755174100493,3.55,4709.2,4708.8,3.35]
[1755174100714,0.55,4709.0,4708.8,3.35]
[1755174100863,1.9577,4708.9,4708.8,3.35]
[1755174101513,5.73189322,4708.9,4708.8,3.35]
[1755174101713,6.33353707,4708.9,4708.8,3.35]
[1755174102210,0.55,4708.8,4706.9,5.09]
[1755174102429,0.55,4708.6,4706.9,5.09]
[1755174102705,3.62818932,4708.9,4706.9,5.09]
[1755174102706,3.55,4708.4,4706.9,5.09]
[1755174103006,0.55,4708.2,4706.9,5.09]
[1755174103212,0.02654998,4708.1,4706.9,5.09]
[1755174103708,1.9577,4708.0,4707.0,3.35]
[1755174103858,0.02654998,4708.1,4707.0,3.35]
[1755174103859,0.02654942,4708.2,4707.0,3.35]
[1755174104185,2.0695,4708.4,4706.9,5.09]
[1755174104383,0.02654998,4708.1,4707.0,3.348]
[1755174104561,0.55,4707.9,4707.0,3.348]
[1755174104763,0.55,4707.7,4707.0,3.348]
[1755174105271,0.1064,4707.1,4706.9,5.09]
[1755174105611,1.9577,4707.0,4706.9,5.09]
[1755174105806,2.16411,4707.0,4706.9,8.44]
[1755174106165,1.9577,4707.0,4706.9,8.44]
[1755174106363,2.15472079,4707.0,4706.9,8.44]
[1755174106764,19.65472079,4707.0,4706.9,8.44]
[1755174107204,19.65472079,4707.0,4706.9,3.35]
[1755174107605,14.69702079,4707.0,4706.9,3.35]
[1755174107768,1.58674208,4707.0,4706.9,3.35]
[1755174107960,0.1064,4707.0,4706.9,3.35]
[1755174109061,0.5446,4707.0,4706.9,3.35]
[1755174109266,2.0641,4707.0,4706.9,3.35]
[1755174109490,0.1064,4707.0,4706.9,3.35]
[1755174110821,14.5,4708.1,4706.9,3.35]
[1755174110822,1.9577,4708.8,4706.9,3.35]
[1755174111028,1.9577,4709.5,4707.0,3.335]
[1755174111228,28.15390546,4711.6,4707.3,3.0]
[1755174111427,2.04713483,4711.5,4707.6,0.55]
[1755174111627,2.04713483,4711.5,4707.5,3.0]
[1755174111628,0.19653483,4711.4,4708.0,0.55]
[1755174111834,0.636637,4709.9,4708.2,0.55]
[1755174112129,0.636637,4709.9,4708.4,3.0]
[1755174112130,0.0265404,4709.8,4708.4,3.0]
[1755174112292,1.4139404,4709.8,4708.5,3.354]
[1755174112494,1.3874,4709.8,4708.6,3.354]
[1755174112693,3.0,4710.4,4707.7,0.0076]
[1755174112694,0.19653207,4710.3,4708.7,3.354]
[1755174112995,0.65973207,4711.1,4708.8,3.0076]
[1755174113330,0.00508668,4711.6,4708.7,3.354]
[1755174113331,0.19648901,4711.5,4709.2,0.55]
[1755174113535,0.00508668,4711.6,4709.9,0.55]
[1755174113718,0.00508668,4711.6,4710.1,3.55]
[1755174113894,0.00508668,4711.6,4710.2,0.5576]
[1755174114094,0.00508668,4711.6,4710.3,0.0076]
[1755174114299,0.11229418,4714.7,4710.3,0.0076]
[1755174114300,1.8506,4714.1,4711.3,3.0]
[1755174114509,0.002,4714.7,4712.0,3.0]
[1755174114706,0.636038,4714.3,4712.2,3.0]
[1755174114955,0.4652,4714.7,4712.4,3.0]
[1755174115252,0.4652,4714.7,4712.5,0.5576]
[1755174115253,0.002,4714.7,4712.5,0.5576]
[1755174115545,0.002,4714.7,4712.4,3.0]
[1755174115546,0.002,4714.7,4712.7,0.55]
[1755174115744,0.002,4714.7,4712.9,3.55]
[1755174115943,0.002,4714.7,4713.0,0.0076]
[1755174116467,0.002,4714.7,4713.0,2.12178587]
[1755174116602,0.002,4714.7,4713.1,3.5576]
[1755174116806,0.002,4714.7,4713.1,7.49153859]
[1755174117744,0.002,4714.7,4713.1,4.12553859]
[1755174117904,0.002,4714.7,4713.1,7.48953859]
[1755174118838,0.002,4714.7,4713.1,7.48093859]
[1755174119444,0.02851282,4714.7,4713.1,7.48853859]
[1755174119751,0.002,4714.7,4713.1,7.48853859]
[1755174120309,1.8506,4714.5,4713.1,6.92693859]
[1755174120531,1.8506,4714.5,4713.1,6.359]
[1755174120743,0.002,4714.7,4713.1,27.71909153]
[1755174120929,0.1084,4714.2,4713.1,28.38309153]
[1755174121130,0.002,4714.2,4713.1,28.38309153]
[1755174121306,0.002,4714.2,4713.2,3.55]
[1755174121507,0.002,4714.2,4713.7,0.55]
[1755174121728,0.002,4714.2,4714.1,0.6564]
[1755174121928,0.002,4714.2,4714.1,7.1366]
[1755174122139,0.002,4714.2,4714.1,7.1422]
[1755174122339,0.002,4714.7,4714.2,0.55]
[1755174122524,0.002,4715.9,4715.0,0.55]
[1755174122836,0.002,4715.9,4715.8,0.1064]
[1755174123029,0.002,4715.9,4715.8,4.0174]
[1755174123231,0.002,4715.9,4715.8,4.72274]
[1755174123830,0.002,4715.9,4715.8,4.71914]
[1755174124349,0.002,4715.9,4715.8,4.72274]
[1755174124757,0.002,4715.9,4715.8,1.35814]
[1755174125053,0.002,4715.9,4715.8,4.16814]
[1755174125260,0.002,4715.9,4715.8,3.4664]
[1755174125446,0.002,4715.9,4715.8,4.02]
[1755174125816,0.002,4715.9,4715.8,0.6564]
[1755174126020,0.002,4715.9,4715.8,7.0224]
[1755174126260,0.002,4715.9,4715.8,3.4724]
[1755174126565,0.002,4715.9,4715.8,0.1064]
[1755174126732,1.959,4715.9,4715.8,3.366]
[1755174127837,0.002,4715.9,4715.8,3.366]
[1755174128934,1.8526,4715.9,4715.4,0.1064]
[1755174129177,1.8526,4715.9,4715.1,5.087]
[1755174129178,0.1064,4715.7,4715.5,3.366]
[1755174129332,0.1064,4715.7,4713.5,0.0036]
[1755174129333,1.8506,4715.6,4714.4,0.1064]
[1755174129531,0.1064,4715.2,4714.5,5.084]
[1755174129834,1.8506,4715.1,4714.1,5.084]
[1755174130170,4.87711113,4715.0,4713.6,5.084]
[1755174130469,2.12125339,4714.2,4712.6,5.084]
[1755174130669,0.55,4714.0,4712.5,5.084]
[1755174130874,0.55,4713.8,4712.5,5.084]
[1755174131057,2.1215207,4713.6,4712.5,5.084]
[1755174131258,0.55,4713.8,4712.5,5.084]
[1755174131259,1.87711957,4713.5,4712.6,3.37]
[1755174131458,1.87711957,4713.5,4712.6,3.371]
[1755174131459,0.1064,4712.7,4712.6,3.371]
[1755174131989,1.957,4712.7,4712.6,3.371]
[1755174132946,1.4938,4712.7,4712.6,3.371]
[1755174133152,0.1056,4712.7,4712.6,3.371]
[1755174133350,0.1056,4712.7,4712.6,4.2165]
[1755174134361,0.1056,4712.7,4712.6,3.371]
[1755174138270,0.1056,4712.7,4712.6,0.001]
[1755174138453,1.9562,4712.7,4712.6,3.367]
[1755174138790,1.9562,4712.7,4712.6,3.365]
[1755174140187,1.9562,4712.7,4712.6,8.451]
[1755174140392,1.9562,4712.7,4712.6,5.087]
[1755174140561,1.9562,4712.7,4712.6,8.45]
[1755174140562,2.0463117,4712.7,4712.6,8.45]
[1755174140761,0.1957117,4712.7,4712.6,8.45]
[1755174140963,1.8506,4713.6,4712.6,9.295]
[1755174141166,0.19566975,4713.5,4712.6,9.295]
[1755174141490,0.19602474,4713.4,4712.6,9.295]
[1755174141686,0.19602474,4713.3,4712.6,9.295]
[1755174141891,0.19602474,4713.2,4712.6,9.295]
[1755174142079,0.19602474,4713.1,4712.6,8.45]
[1755174142277,0.19602474,4713.0,4712.6,5.087]
[1755174142477,2.17512474,4712.9,4712.7,3.363]
[1755174142653,0.19602474,4712.8,4712.7,3.363]
[1755174142859,2.17512474,4712.8,4712.7,3.363]
[1755174143379,0.19602474,4712.8,4712.7,4.208]
[1755174143581,0.19602474,4712.8,4712.7,7.208]
[1755174143892,0.19602474,4712.8,4712.7,7.758]
[1755174144195,1.9791,4714.8,4712.8,3.0]
[1755174144520,0.19653594,4714.7,4713.0,3.0]
[1755174144695,0.19653594,4714.6,4713.2,3.0]
[1755174144864,2.17563594,4714.5,4713.2,3.0]
[1755174145059,2.17563594,4714.4,4713.2,3.0]
[1755174145254,2.20215101,4714.3,4712.7,3.0]
[1755174145461,2.17563594,4714.2,4712.9,3.0]
[1755174145689,2.42236723,4714.1,4712.9,3.0]
[1755174145957,2.17563594,4714.0,4712.9,3.0]
[1755174146280,0.19653594,4713.9,4712.9,3.0]
[1755174146466,0.19653594,4713.8,4712.9,3.0]
[1755174146666,0.19653594,4713.7,4712.9,3.0]
[1755174146868,0.19653594,4713.6,4712.9,3.0]
[1755174147068,0.19653594,4713.5,4713.0,1.1447]
[1755174147370,2.17563594,4713.4,4713.1,3.359]
[1755174147572,0.19653594,4713.3,4713.1,3.359]
[1755174147797,0.19653594,4713.2,4713.1,3.359]
[1755174149068,0.19653594,4713.2,4713.1,6.9126]
[1755174149274,0.4514,4715.0,4713.2,0.55]
[1755174149468,1.72620593,4714.9,4713.2,3.55]
[1755174149671,0.19650593,4714.8,4713.6,0.55]
[1755174149902,0.19650593,4714.7,4713.7,6.366]
[1755174150073,0.19650593,4714.6,4714.1,0.55]
[1755174150393,0.002,4715.0,4714.5,3.55]
[1755174150622,0.19646799,4714.9,4714.7,3.0]
[1755174150778,0.002,4715.0,4714.9,5.77733575]
[1755174151187,0.002,4715.0,4714.9,7.0224]
[1755174151376,0.002,4715.0,4714.9,9.14693575]
[1755174151698,0.002,4715.0,4714.9,10.38559422]
[1755174152301,0.0012,4715.0,4714.9,10.38559422]
[1755174152508,0.0012,4715.0,4714.9,10.38639422]
[1755174154712,0.0012,4715.0,4714.9,4.78911311]
[1755174154875,0.0012,4715.0,4714.9,8.15311311]
[1755174155278,0.0012,4715.0,4714.9,4.78911311]
[1755174155641,0.0012,4715.0,4714.9,8.15111311]
[1755174155776,0.002,4715.5,4714.9,8.15111311]
[1755174155777,0.002,4715.5,4715.4,24.03080239]
[1755174155975,0.002,4715.5,4715.4,27.62195225]
[1755174156197,0.002,4715.5,4715.4,33.81945153]
[1755174156398,0.002,4715.5,4715.4,30.45585153]
[1755174156600,0.002,4715.5,4715.4,35.94016239]
[1755174156926,0.002,4715.9,4715.8,5.67053098]
[1755174157076,0.002,4715.9,4715.8,10.16244409]
[1755174157275,0.002,4715.9,4715.8,10.27244409]
[1755174158926,0.002,4716.0,4715.8,10.27244409]